Cogmind - Beta 15 @@@ ROGUE MODE // 2025.08.02 @ 22:44:56 Player: Anting Result: Destroyed by H-77 Assassin with Coil Gun Performance ------------- Evolutions (7) 3500 Regions Visited (20) 4000 Robots Destroyed (274) 1370 Value Destroyed (8340) 8340 Prototype IDs (61) 1220 Alien Tech Used (2) 400 Bonus (3007) 3007 TOTAL SCORE: 21837 Bonus ------- High Alert Combat Kills 1805 Follower Combat Kills 338 Registered with UFD 300 Met Optimus in HQ 500 Met Zhirov 300 Friendly Fire -236 Cogmind --------- Core Integrity 0/1300 Matter 99/300 Energy 43/100 System Corruption 24% Temperature Cool (10) Movement Core (200) Ox3 Location -3/Research Parts ------- > --- POWER (2) -------- (None) > --- PROPULSION (6) --- Improved Gyrokinetic Inverter > --- UTILITY (9) ------ Experimental Signal Interpreter Advanced Hacking Suite Advanced System Shield > --- WEAPON (4) ------- Improved Matter Neutralizer > --- INVENTORY (5) ---- Advanced Coolant Injector IFF Parser Improved Phase Shifter Improved Matter Neutralizer Peak State ------------ > --- POWER ------------ Fusion Reactor > --- PROPULSION ------- Cooled Gravmag System Cooled Gravmag System Cooled Gravmag System Improved Gyrokinetic Inverter Antigrav Array > --- UTILITY ---------- Experimental Signal Interpreter IFF Parser Improved Transmission Jammer Advanced Reaction Control System Hardened Light Armor Plating Graphene Brace Hacking Suite Advanced Hacking Suite System Shield > --- WEAPON ----------- Improved Matter Neutralizer Enhanced Force Lance Enhanced Force Lance Enhanced Force Lance > --- INVENTORY -------- Improved Gyrokinetic Inverter Power Amplifier Transdimensional Reconstructor Improved Matter Neutralizer Improved Matter Neutralizer [Rating: 135] Favorites ----------- Power Cooled Ion Engine Engine Cooled Ion Engine Power Core Light Nuclear Core Reactor Antimatter Reactor Propulsion Light Treads Treads Light Treads Leg Aluminum Leg Wheel Overtuned Huge Scrapsphere Hover Unit Cooled Gravmag System Flight Unit Cooled VTOL Module Utility Improved Light Armor Plating Device Seismic Detector Storage Huge Storage Unit Processor Experimental Signal Interpreter Hackware Hacking Suite Protection Improved Light Armor Plating Weapon Heavy EM Shotgun Energy Gun Heavy EM Shotgun Energy Cannon Heavy Plasma Cannon Ballistic Gun Heavy Assault Rifle Launcher Rocket Launcher Special Weapon Voltaic Drivehammer Impact Weapon Great Maul Slashing Weapon Chainsword Piercing Weapon Makeshift Spear Build | -11 -10 -10 -9 -9 -8 -8 -8 -8 -6 -6 -6 -5 -5 -5 -4 -4 -4 -4 -3 -3 ------- Run | Yrd Mat Min Mat Min Mat Sto Rec Scr Fac Was Fac Fac Was Fac Fac Upp Upp Zhi Pro Res Slots Evolved 14 | . . . 2 . 2 . . . 4 . . 2 . . 2 . . . . 2 Power 1 | . . . . . . . . . . . . . . . . . . . . 1 Propulsion 4 | . . . 1 . 1 . . . 1 . . 1 . . . . . . . . Utility 7 | . . . 1 . 1 . . . 3 . . 1 . . 1 . . . . . Weapon 2 | . . . . . . . . . . . . . . . 1 . . . . 1 Parts Attached 227 | 8 8 2 19 . 24 36 5 14 15 . 25 15 4 3 11 4 4 7 1 22 Power 21 | 1 2 . 2 . 2 2 . 1 2 . 2 1 1 . 2 1 1 1 . . Engine 15 | 1 2 . 1 . 2 2 . 1 2 . 1 1 . . . 1 1 . . . Core 3 | . . . 1 . . . . . . . 1 . . . 1 . . . . . Reactor 3 | . . . . . . . . . . . . . 1 . 1 . . 1 . . Propulsion 77 | 3 2 2 4 . 8 18 3 4 2 . 8 4 . 1 2 1 2 3 1 9 Treads 30 | 1 . . 2 . 7 17 3 . . . . . . . . . . . . . Leg 8 | 2 2 2 2 . . . . . . . . . . . . . . . . . Wheel 1 | . . . . . . . . 1 . . . . . . . . . . . . Hover 11 | . . . . . . . . . . . . . . . . 1 . 3 1 6 Flight 27 | . . . . . 1 1 . 3 2 . 8 4 . 1 2 . 2 . . 3 Utility 75 | 2 3 . 8 . 3 9 . 7 6 . 9 8 3 1 4 2 1 3 . 6 Device 27 | 1 2 . 3 . . 1 . 1 2 . 4 4 1 . 1 . . 2 . 5 Storage 8 | 1 1 . 3 . . . . 1 . . 1 . 1 . . . . . . . Processor 6 | . . . . . 1 . . . 1 . 1 . . . . 2 1 . . . Hackware 17 | . . . . . . . . 4 3 . 2 4 . 1 1 . . 1 . 1 Protection 17 | . . . 2 . 2 8 . 1 . . 1 . 1 . 2 . . . . . Artifact . | . . . . . . . . . . . . . . . . . . . . . Weapon 54 | 2 1 . 5 . 11 7 2 2 5 . 6 2 . 1 3 . . . . 7 Energy Gun 12 | . . . . . 7 5 . . . . . . . . . . . . . . Energy Cannon 10 | . . . . . 1 . 1 . 2 . . . . 1 2 . . . . 3 Ballistic Gun 11 | 2 1 . 3 . 1 . . 1 . . 3 . . . . . . . . . Ballistic Cannon . | . . . . . . . . . . . . . . . . . . . . . Launcher 10 | . . . 1 . 2 2 1 . 1 . 1 . . . 1 . . . . 1 Special Weapon 2 | . . . . . . . . . 1 . . 1 . . . . . . . . Impact Weapon 1 | . . . . . . . . . 1 . . . . . . . . . . . Slashing Weapon 4 | . . . . . . . . 1 . . 2 1 . . . . . . . . Piercing Weapon 4 | . . . 1 . . . . . . . . . . . . . . . . 3 Special Melee Weapon . | . . . . . . . . . . . . . . . . . . . . . Unidentified Prototypes 24 | . . . 1 . 4 5 . 1 1 . 4 . . 2 1 . . 2 . 3 Parts Lost 89 | . 5 1 4 . 17 10 . . . . 12 2 . . 4 7 3 . 2 22 Power 7 | . 1 1 1 . 1 . . . . . 1 . . . . . 1 . . 1 Propulsion 33 | . 2 . 2 . 3 1 . . . . 4 1 . . 4 4 . . 1 11 Utility 33 | . 1 . 1 . 6 5 . . . . 7 . . . . 2 2 . 1 8 Weapon 16 | . 1 . . . 7 4 . . . . . 1 . . . 1 . . . 2 Highest Loss Streak 8 | . 2 1 2 . 4 2 . . . . 4 2 . . 2 4 3 . 2 8 To Critical Strikes . | . . . . . . . . . . . . . . . . . . . . . Average Backups 15 | 1 7 9 15 20 24 23 24 9 4 5 4 4 5 9 9 7 4 3 2 4 Power . | . . . . . . . . . . . . . . 1 1 . . . . . Propulsion 5 | 1 3 2 4 6 6 10 11 3 . . . . . . . . . . . . Utility 6 | . 2 3 7 9 8 8 9 3 2 3 2 3 4 6 5 4 3 1 1 1 Weapon 3 | . 1 3 4 4 8 5 3 2 2 2 1 1 1 1 1 2 1 . . 1 Tool/Special . | . . . . . . . . . . . . . . . . . . . . . Unused Backups 38 | . . 1 4 . 3 7 2 11 2 . . . . . 2 . . . . 6 Power 3 | . . . . . 1 2 . . . . . . . . . . . . . . Propulsion 7 | . . . . . . 4 . 3 . . . . . . . . . . . . Utility 15 | . . . . . . . 2 7 2 . . . . . 1 . . . . 3 Weapon 12 | . . 1 4 . 2 1 . 1 . . . . . . . . . . . 3 Tool/Special 1 | . . . . . . . . . . . . . . . 1 . . . . . Average Slot Usage (%) 89 | . 99 100 94 100 94 98 99 71 92 100 87 76 97 93 83 46 49 75 91 64 Engine 7 | . 14 14 4 11 9 8 9 8 6 6 5 5 3 . . . 2 . . . Treads 16 | . . . 1 . 27 35 36 31 . . . . . . . . . . . . Leg 7 | . 27 28 29 33 7 . . . . . . . . . . . . . . . Flight 7 | . . . . . . . . 4 33 33 31 32 35 35 28 8 2 10 9 1 Device 6 | . 14 14 15 11 10 . . . 6 6 5 8 14 11 13 5 7 2 5 11 Storage 7 | . 14 14 11 11 9 9 9 7 . . . . 1 5 5 4 . . . . Processor 2 | . . . . . 4 1 . . 5 6 6 5 5 5 5 8 10 15 15 5 Hackware 5 | . . . . . . . . 1 22 26 19 14 23 23 21 14 10 13 15 12 Protection 11 | . . . 4 11 8 24 27 14 6 6 5 . . . . . 4 7 9 2 Energy Gun 3 | . . . . . 13 5 8 . . . . . . . . . . . . . Ballistic Gun 5 | . 28 28 12 21 . 3 8 . . . . . . . . . . . . . Launcher 1 | . . . 2 . . 5 . . 2 6 3 . . . . . . . . . Piercing Weapon 1 | . . . 7 . . 3 . . . . . . . . . . . . . 7 Peak Build Rating 135 | 7 8 11 23 17 31 38 39 46 71 70 81 83 84 84 95 66 42 89 89 135 Average Rating 38 | 5 7 8 18 16 28 31 35 26 65 70 66 67 79 77 77 42 39 71 86 91 On Entrance 44 | . 7 8 11 16 17 18 32 33 46 70 70 52 80 77 79 66 37 40 89 76 Naked Turns . | . . . . . . . . . . . . . . . . . . . . . Heaviest Build 110 | 12 19 18 99 95 110 110 104 97 25 25 25 22 33 32 33 27 10 34 34 59 Greatest Support 86 | 20 20 25 35 35 85 85 80 80 27 25 36 38 36 42 44 30 11 44 59 86 Greatest Overweight (x) 4 | 3 . . 3 2 4 1 1 2 . . . . . . 1 2 1 . . 2 Average Overweight (x) . | . . . 1 2 1 1 1 . . . . . . . . . . . . . Largest Inventory Capacity 25 | 8 10 10 25 25 25 25 25 25 5 5 5 5 10 10 10 10 5 5 5 5 Average Capacity 18 | 7 9 10 20 25 25 25 25 22 5 5 5 5 6 10 10 9 5 5 5 5 Most Carried 25 | 3 10 10 20 21 25 25 25 25 5 5 5 5 8 10 10 10 5 5 5 5 Average Carried 15 | 2 7 9 15 20 24 23 24 10 4 5 4 4 5 9 9 8 4 2 2 4 Final Capacity 25 | 8 10 10 25 25 25 25 25 5 5 5 5 5 10 10 10 5 5 5 5 5 Final Carried 25 | 3 10 10 19 21 25 23 25 5 5 5 5 5 8 10 8 5 4 2 4 4 Class Distribution -------------------- 36% | Mutant 32% | Scavenger-Mutant 19% | Hacker-Sprinter 9% | Hacker-Mutant Dominant Class ---------------- Scavenger-Mutant | -10/Materials Scavenger-Mutant | -10/Mines Scavenger-Mutant | -9/Materials Scavenger-Mutant | -9/Mines Scavenger-Mutant | -8/Materials Mutant | -8/Storage Mutant | -8/Recycling Mutant | -8/Scraptown Hacker-Sprinter | -6/Factory Hacker-Sprinter | -6/Waste Hacker-Sprinter | -6/Factory Hacker-Sprinter | -5/Factory Hacker-Sprinter | -5/Waste Hacker-Sprinter | -5/Factory Hacker-Sprinter | -4/Factory Hacker-Mutant | -4/Upper Caves Hacker-Mutant | -4/Upper Caves Hacker-Mutant | -4/Zhirov Hacker-Mutant | -3/Proximity Caves Hacker-Mutant | -3/Research Resources | -11 -10 -10 -9 -9 -8 -8 -8 -8 -6 -6 -6 -5 -5 -5 -4 -4 -4 -4 -3 -3 ----------- Run | Yrd Mat Min Mat Min Mat Sto Rec Scr Fac Was Fac Fac Was Fac Fac Upp Upp Zhi Pro Res Matter Collected 5525 | 193 514 106 385 24 446 1462 171 360 57 . 493 136 114 52 157 399 162 119 . 175 Remotely . | . . . . . . . . . . . . . . . . . . . . . Salvage Created 10922 | 12 464 73 941 94 2755 3844 165 . 59 . 753 339 . 99 93 353 172 360 . 346 Parts 569 | 3 33 5 65 6 156 189 14 . 8 . 14 19 . 8 13 9 9 2 . 16 Haulers Intercepted 13 | . . . 2 . 6 4 . . . . 1 . . . . . . . . . Recyclers Shooed 10 | . . . 1 . 3 4 1 . . . 1 . . . . . . . . . Parts Field Recycled . | . . . . . . . . . . . . . . . . . . . . . Retrieved Matter . | . . . . . . . . . . . . . . . . . . . . . Parts Self-Destructed 17 | . . . . . . . . . . . . . . . . 7 4 2 4 . Prevented . | . . . . . . . . . . . . . . . . . . . . . Kills | -11 -10 -10 -9 -9 -8 -8 -8 -8 -6 -6 -6 -5 -5 -5 -4 -4 -4 -4 -3 -3 ------- Run | Yrd Mat Min Mat Min Mat Sto Rec Scr Fac Was Fac Fac Was Fac Fac Upp Upp Zhi Pro Res Combat Hostiles Destroyed 186 | . 12 4 16 4 45 70 2 . . . 1 2 . . 8 9 4 . . 9 Melee 39 | . . . 7 . . 20 . . . . 1 . . . 1 1 4 . . 5 Guns 49 | . 12 4 3 . 20 9 1 . . . . . . . . . . . . . Cannons 7 | . . . . . 4 . . . . . . 2 . . . . . . . 1 AOE 84 | . . . 5 4 18 38 1 . . . . . . . 7 8 . . . 3 Classes Destroyed 17 | 1 4 . 5 . 3 2 . . . . 1 . . . 1 . . . . . Worker 17 | . 1 . 3 . 4 6 . . 1 . . . . . 2 . . . . . Builder 20 | . . . 2 1 5 5 1 . 2 . . . . 1 . . . . . 3 Tunneler 7 | 1 1 . 1 . 2 1 . . . . . . . 1 . . . . . . Hauler 13 | . . . 2 . 6 4 . . . . 1 . . . . . . . . . Recycler 10 | . . . 1 . 3 . 1 . . . 4 1 . . . . . . . . Mechanic 3 | . . . . . . 3 . . . . . . . . . . . . . . Operator 6 | . 1 . 1 . 1 . . . . . . 3 . . . . . . . . Drone 1 | . . . . . . . . . . . . . . . 1 . . . . . Watcher 12 | . . . 1 . 3 . . . 1 . 3 2 . 2 . . . . . . Swarmer 46 | . 3 3 4 4 13 2 . . . . . 2 . . 7 4 4 . . . Grunt 91 | . 9 1 10 . 22 42 . . . . . . . . . 3 . . . 4 Brawler 8 | . . . . . 1 7 . . . . . . . . . . . . . . Duelist 7 | . . . . . 2 5 . . . . . . . . . . . . . . Protector 4 | . . . . . . 4 . . . . . . . . . . . . . . Sentry 20 | . . . 2 . 6 10 2 . . . . . . . . . . . . . Hunter 3 | . . . . . 1 . . . . . . . . . . . . . . 2 Programmer 6 | . . . . . . . . . . . 1 . . . . 2 . . . 3 Decomposer 5 | . . . . . . . . . . . . . . . . . 5 . . . Thug 1 | . . . . . . 1 . . . . . . . . . . . . . . Best Kill Streak 15 | 1 4 3 6 4 11 15 1 . 2 . 2 2 . 1 6 4 4 . . 7 Combat Bots Only 12 | . 2 3 5 4 10 12 1 . . . 1 2 . . 5 4 4 . . 4 Max Kills in Single Turn 6 | 1 1 1 2 4 4 6 1 . 2 . 1 1 . 1 3 3 1 . . 2 Gunslinging . | . . . . . . . . . . . . . . . . . . . . . Exploded 5 | . . . 2 4 3 5 1 . . . . . . . 2 3 . . . 2 Melee 1 | . . . 1 . . 1 . . . . 1 . . . 1 1 1 . . 1 Uniques/NPCs Destroyed . | . . . . . . . . . . . . . . . . . . . . . Combat | -11 -10 -10 -9 -9 -8 -8 -8 -8 -6 -6 -6 -5 -5 -5 -4 -4 -4 -4 -3 -3 -------- Run | Yrd Mat Min Mat Min Mat Sto Rec Scr Fac Was Fac Fac Was Fac Fac Upp Upp Zhi Pro Res Hostile Shots Fired 1237 | . 110 11 55 4 178 252 8 3 8 . 96 28 . 6 98 41 15 . 59 265 Missed 465 | . 29 3 21 . 57 66 4 1 6 . 43 11 . 2 61 17 6 . 42 96 Hits 772 | . 81 8 34 4 121 186 4 2 2 . 53 17 . 4 37 24 9 . 17 169 Melee 26 | . . . . . 7 18 . 1 . . . . . . . . . . . . Projectile 746 | . 81 8 34 4 114 168 4 1 2 . 53 17 . 4 37 24 9 . 17 169 AOE 1 | . 1 . . . . . . . . . . . . . . . . . . . Critical Strikes 35 | . 1 . . . 5 10 . . . . 3 1 . . 1 4 1 . . 9 Actively Blocked 9 | . . . . . . . . . . . . . . . . . . . . 9 Part Disruptions 1 | . . . . . . . . . . . . . . . . . . . . 1 Damage Taken 13575 | . 1003 60 439 41 2187 3166 64 35 101 . 1083 298 . 86 671 537 135 . 332 3337 Core 2906 | . 217 6 56 . 146 280 29 . . . 192 85 . 40 250 226 43 . 69 1267 Absorbed by Shields 5 | . . . . . . . . . . . 5 . . . . . . . . . Redirected to Shielding 71 | . . . . . . . . . . . . . . . . . 11 . 60 . Regen/Repaired (Parts) 136 | . . . . . . . . . . . . . 42 94 . . . . . . Core Remaining (%) 60 | 100 . 10 . 86 . . . 17 . . 77 . . 87 . . . . 48 . Volleys Fired 409 | 3 75 8 31 1 101 92 5 3 20 . 5 12 . 2 10 13 . 2 7 19 Largest 2 | 2 2 2 2 1 2 2 2 1 1 . 1 1 . 1 1 1 . 1 1 1 Hottest 125 | 40 40 40 46 33 125 100 75 33 90 . 90 90 . 90 98 46 . 98 98 113 Shots Fired 663 | 6 150 16 50 1 188 144 13 3 20 . 6 12 . 2 10 13 . 2 7 20 Gun 472 | 6 150 16 38 . 164 84 13 1 . . . . . . . . . . . . Cannon 74 | . . . . . 11 . . . 19 . 4 11 . 2 5 . . 2 7 13 Launcher 115 | . . . 12 1 13 60 . 2 1 . 1 . . . 5 13 . . . 7 Special 2 | . . . . . . . . . . . 1 1 . . . . . . . . Kinetic 251 | 6 150 16 38 . . 31 9 1 . . . . . . . . . . . . Thermal 74 | . . . . . 11 . . . 19 . 4 11 . 2 5 . . 2 7 13 Explosive 52 | . . . . . 4 19 . 2 1 . 1 . . . 5 13 . . . 7 Electromagnetic 285 | . . . 12 1 173 94 4 . . . 1 . . . . . . . . . Robot Hit Streak 21 | 1 9 3 11 1 21 14 4 . 2 . 3 4 . . 4 . . 6 . 5 Robot Miss Streak 6 | 3 6 2 3 . 5 4 2 . . . . 2 . . . . . . 2 . Penetration Max . | . . . . . . . . . . . . . . . . . . . . . Secondary Targets 11 | . 1 2 . . 7 1 . . . . . . . . . . . . . . Max Gunslinging Chain 1 | . 1 1 . . 1 1 . . . . . . . . . . . . . . Shots Hit Robots 556 | 2 91 9 56 1 138 149 7 . 3 . 11 11 14 7 4 12 9 10 . 22 Core Hits 453 | 1 36 6 32 6 113 165 8 . 3 . 3 7 . 3 10 20 9 5 . 26 Critical Kills 1 | . . . . . . . . . 1 . . . . . . . . . . . Critical Parts Destroyed 3 | . . . . . . . . . . . 3 . . . . . . . . . Critical Strikes 22 | . . . 6 . . 7 . . 1 . 3 . . . . 1 . . . 4 Smash 4 | . . . . . . . . . 1 . 3 . . . . . . . . . Sever 1 | . . . . . . . . . . . . . . . . 1 . . . . Impale 17 | . . . 6 . . 7 . . . . . . . . . . . . . 4 Melee Attacks 366 | . . . 35 . 5 115 . . 18 . 53 24 14 26 25 13 10 8 . 20 Impact 43 | . . . . . . . . . 18 . 25 . . . . . . . . . Slashing 148 | . . . . . . . . . . . 28 24 14 26 25 13 10 8 . . Piercing 175 | . . . 35 . 5 115 . . . . . . . . . . . . . 20 Sneak Attacks 39 | . . . 7 . 1 9 . . 2 . 6 5 . 2 2 . 5 . . . Combat Hostiles 2 | . . . . . . . . . . . 1 . . . 1 . . . . . Follow-up Attacks . | . . . . . . . . . . . . . . . . . . . . . Damage Inflicted 25609 | 29 845 113 1825 139 4492 8729 204 . 326 . 1059 648 531 368 967 1741 527 767 . 2299 Guns 4987 | 29 823 113 431 . 2489 967 135 . . . . . . . . . . . . . Cannons 566 | . . . . . 250 . . . . . . 62 . . . . . 67 . 187 Explosions 11320 | . . . 433 61 1592 5476 30 . 132 . 234 . . . 832 1176 . . . 1354 Melee 8539 | . . . 961 . 107 2286 . . 194 . 825 586 531 368 135 565 527 700 . 754 Ramming 197 | . 22 . . 78 54 . 39 . . . . . . . . . . . . 4 Kinetic 1726 | 29 823 113 431 . . 285 45 . . . . . . . . . . . . . Thermal 2540 | . . . 62 . 1062 1070 30 . . . . 62 . . . . . 67 . 187 Explosive 5868 | . . . . . 439 1855 . . 132 . 80 . . . 832 1176 . . . 1354 Electromagnetic 6739 | . . . 371 61 2830 3233 90 . . . 154 . . . . . . . . . Impact 610 | . . . . . . . . . 194 . 416 . . . . . . . . . Slashing 3821 | . . . . . . . . . . . 409 586 531 368 135 565 527 700 . . Piercing 4108 | . . . 961 . 107 2286 . . . . . . . . . . . . . 754 Highest Corruption 24 | . . . . . 6 24 24 1 . 7 14 4 4 . 2 6 6 6 6 24 Average Corruption 13 | . . . . . 5 17 24 1 . 7 9 3 2 . 1 2 6 6 6 10 Corruption Purged 4 | . . . . . . . . . . . . . 4 . . . . . . . Corruption Blocked . | . . . . . . . . . . . . . . . . . . . . . Effects 348 | . . . . . 16 168 71 2 . 1 28 7 1 . . 17 7 2 5 23 Message Errors 80 | . . . . . 5 37 16 . . . 8 . 1 . . 6 . 1 3 3 Matter Fused 78 | . . . . . 3 37 12 1 . . 8 1 . . . 6 3 . . 7 Heat Flow Errors 45 | . . . . . 1 25 6 . . . 1 3 . . . 2 1 1 . 5 Energy Discharges 50 | . . . . . 3 20 15 1 . . 3 2 . . . 2 2 . . 2 Parts Rejected 5 | . . . . . 1 3 . . . 1 . . . . . . . . . . Parts Fused 5 | . . . . . . 3 1 . . . 1 . . . . . . . . . Data Loss (minor) 34 | . . . . . 3 12 10 . . . 3 1 . . . 1 1 . 2 1 Data Loss (major) 13 | . . . . . . 11 1 . . . 1 . . . . . . . . . Misfires 18 | . . . . . . 11 5 . . . 1 . . . . . . . . 1 Alerts 5 | . . . . . . 2 2 . . . 1 . . . . . . . . . Misdirections 8 | . . . . . . 2 1 . . . 1 . . . . . . . . 4 Weapon Failures 7 | . . . . . . 5 2 . . . . . . . . . . . . . Overload Shots . | . . . . . . . . . . . . . . . . . . . . . Overflow Damage 1635 | . . . 127 . 39 216 . . 42 . 499 95 14 74 74 140 . 190 . 125 Projectiles 72 | . . . . . . . . . . . . . . . . . . . . 72 Explosions 276 | . . . 14 . 39 77 . . . . 45 . . . 44 29 . . . 28 Melee 1287 | . . . 113 . . 139 . . 42 . 454 95 14 74 30 111 . 190 . 25 Knockbacks 3 | . . . . 1 . . . . . . 2 . . . . . . . . . Impact 3 | . . . . 1 . . . . . . 2 . . . . . . . . . Kinetic . | . . . . . . . . . . . . . . . . . . . . . Secondary . | . . . . . . . . . . . . . . . . . . . . . Self-Inflicted Damage 477 | . . . 8 6 152 145 . . 69 . . . . . 47 48 . . . 2 Shots 23 | . . . 1 1 7 10 . . 1 . . . . . 2 1 . . . . Rammed 14 | . . . . . 6 1 5 . . . . . . . . . . . . 2 Targets Rammed 33 | . 5 . . 9 10 1 6 . . . . . . . . . . . . 2 Kicked 17 | . 5 . . 9 3 . . . . . . . . . . . . . . . Crushed 2 | . . . . . 1 . 1 . . . . . . . . . . . . . Highest Temperature 476 | . 37 . 12 . 187 259 273 5 176 1 160 186 5 80 476 207 157 332 226 248 Average Temperature 66 | . 10 . 5 . 29 76 98 3 54 1 23 53 5 20 130 62 91 182 92 98 Received Heat Transfer 2793 | . 438 . 204 . 630 1224 18 . 9 . 105 . . 27 24 21 . . 9 84 Effects 2 | . . . . . . . . . . . . . . . 2 . . . . . Shutdowns 1 | . . . . . . . . . . . . . . . 1 . . . . . Energy Bleed 1 | . . . . . . . . . . . . . . . 1 . . . . . Siege Activations . | . . . . . . . . . . . . . . . . . . . . . Martial Activations . | . . . . . . . . . . . . . . . . . . . . . Shielding Activations . | . . . . . . . . . . . . . . . . . . . . . Robots Disrupted 1 | . . . . . . 1 . . . . . . . . . . . . . . Combat Hostiles 1 | . . . . . . 1 . . . . . . . . . . . . . . Robots Corrupted 13 | . . . 1 . 4 3 . . 1 . 4 . . . . . . . . . Combat Hostiles 7 | . . . 1 . 3 3 . . . . . . . . . . . . . . Parts Fried 34 | . . . 3 . 14 7 . . 2 . 8 . . . . . . . . . Impact Corruptions 12 | . . . . . . . . . 2 . 10 . . . . . . . . . Robots Melted . | . . . . . . . . . . . . . . . . . . . . . Combat Hostiles . | . . . . . . . . . . . . . . . . . . . . . Parts Melted 5 | . . 2 1 . 1 1 . . . . . . . . . . . . . . Heat Transferred 3032 | . . . 150 . 1320 1164 50 . . . . 100 . . . . . 100 . 148 Parts Sabotaged . | . . . . . . . . . . . . . . . . . . . . . Parts Stolen . | . . . . . . . . . . . . . . . . . . . . . Parts Stripped . | . . . . . . . . . . . . . . . . . . . . . Power Chain Reactions 31 | . . . 3 . 11 16 1 . . . . . . . . . . . . . Alert | -11 -10 -10 -9 -9 -8 -8 -8 -8 -6 -6 -6 -5 -5 -5 -4 -4 -4 -4 -3 -3 ------- Run | Yrd Mat Min Mat Min Mat Sto Rec Scr Fac Was Fac Fac Was Fac Fac Upp Upp Zhi Pro Res Maximum Alert Level 5 | . . . . . 3 5 3 . . . 1 1 . 2 2 . . . . . Low Security (%) 47 | 100 100 100 100 100 32 . . . 100 100 90 44 100 6 22 . . . . 100 Level 1 13 | . . . . . 17 22 7 . . . 9 55 . 52 21 . . . . . Level 2 20 | . . . . . 17 25 91 . . . . . . 41 56 . . . . . Level 3 8 | . . . . . 31 11 1 . . . . . . . . . . . . . Level 4 8 | . . . . . . 34 . . . . . . . . . . . . . . Level 5 1 | . . . . . . 6 . . . . . . . . . . . . . . High Security . | . . . . . . . . . . . . . . . . . . . . . Max Security . | . . . . . . . . . . . . . . . . . . . . . Sterilizations 1 | . . . . . . 1 . . . . . . . . . . . . . . Peak Influence 1781 | 5 85 50 144 120 898 1781 700 . 99 26 356 344 103 480 685 . . . . 178 Initial 690 | . . 25 15 30 . 343 690 . . 26 11 181 103 . 140 . . . . 111 Average 381 | . 38 10 77 11 429 887 525 . 18 21 54 254 42 369 389 . . . . 64 Influence Increases 9750 | 5 454 100 509 95 1414 2294 213 . 238 . 765 382 . 1091 1173 215 135 15 255 397 Destroy 0b10 Robot/C 4100 | . 240 80 320 80 900 1420 40 . . . 20 40 . 380 140 180 80 . . 180 Destroy 0b10 Robot/NC 490 | 5 15 . 55 5 120 115 10 . 20 . 40 30 . 25 15 5 . 15 . 15 Destroy Leader 830 | . 50 20 76 10 208 258 . . 2 . 18 14 . 84 20 30 10 . . 30 Allied During Kill 136 | . . . . . . 13 . . . . . . . 123 . . . . . . Successful Hack 267 | . 14 . 9 . 8 30 37 . 10 . 19 45 . 34 49 . . . . 12 Select Force Hacks 260 | . 60 . . . 30 . 120 . . . . 50 . . . . . . . . Disable Machine 450 | . . . 15 . 60 225 . . . . 30 30 . 30 45 . . . . 15 Destroy Structure 682 | . . . 4 . 58 188 6 . 41 . 53 38 . 40 154 . . . . 100 Partial Spotted 285 | . . . . . . . . . 30 . 90 30 . 90 45 . . . . . Lose Combat Pursuer 2250 | . 75 . 30 . 30 45 . . 135 . 495 105 . 285 705 . 45 . 255 45 Influence Decreases 9732 | 5 389 125 471 173 600 1337 1607 377 161 61 410 456 297 804 833 707 157 128 90 544 Entered New Map 3056 | . . 40 25 48 . 471 1081 377 . 51 5 190 194 . 147 233 27 113 . 54 Time Decay 4839 | 5 345 75 406 125 430 746 526 . 134 10 262 246 103 294 326 404 100 15 70 217 Search Patrol Dispatched 300 | . . . . . . . . . . . . . . 150 150 . . . . . Lost Part 864 | . 44 10 40 . 170 100 . . . . 110 20 . . 40 70 30 . 20 210 Lost Ally 400 | . . . . . . 20 . . . . . . . 360 20 . . . . . Purge Threat 273 | . . . . . . . . . 27 . 33 . . . 150 . . . . 63 Squads Dispatched 98 | . 4 1 2 . 8 14 . . 10 . 12 13 . 17 12 . . . . 5 Investigation 58 | . 3 1 . . 2 2 . . 8 . 10 10 . 12 8 . . . . 2 Extermination 12 | . . . . . . . . . 2 . 1 2 . 2 3 . . . . 2 Reinforcement 16 | . 1 . 2 . 3 3 . . . . 1 1 . 3 1 . . . . 1 Assault 9 | . . . . . . 9 . . . . . . . . . . . . . . Garrison 3 | . . . . . 3 . . . . . . . . . . . . . . . Intercept . | . . . . . . . . . . . . . . . . . . . . . Searches Triggered 2 | . . . . . . . . . . . . . . 1 1 . . . . . Construction Impeded 5 | . . . . . 1 3 . . . . . . . . . . . . . 1 Haulers Reinforced . | . . . . . . . . . . . . . . . . . . . . . Active Scanning Responses . | . . . . . . . . . . . . . . . . . . . . . Cargo Convoy Interrupts 1 | . . . . . . . . . . . 1 . . . . . . . . . Stealth | -11 -10 -10 -9 -9 -8 -8 -8 -8 -6 -6 -6 -5 -5 -5 -4 -4 -4 -4 -3 -3 --------- Run | Yrd Mat Min Mat Min Mat Sto Rec Scr Fac Was Fac Fac Was Fac Fac Upp Upp Zhi Pro Res Distress Signals 22 | . 3 . 2 . 2 4 . . . . . 2 . 4 4 . . . . 1 Communications Jammed . | . . . . . . . . . . . . . . . . . . . . . Distress Signals . | . . . . . . . . . . . . . . . . . . . . . Times Spotted 464 | . 23 5 34 4 60 102 2 5 12 5 40 16 . 26 65 8 8 . 22 27 Peak Tracking Total 13 | . 5 2 6 4 9 13 1 2 5 5 11 6 . 5 13 6 5 . 13 8 Tactical Retreats 65 | . 3 . 1 . 2 3 . . 4 . 12 3 . 10 17 . 2 . 6 2 ID Masks Used 1 | . . . . . . . . . . . . . . . . 1 . . . . IFF Responses 171 | . . . . . . . . . . . . . . . . 171 . . . . Traps | -11 -10 -10 -9 -9 -8 -8 -8 -8 -6 -6 -6 -5 -5 -5 -4 -4 -4 -4 -3 -3 ------- Run | Yrd Mat Min Mat Min Mat Sto Rec Scr Fac Was Fac Fac Was Fac Fac Upp Upp Zhi Pro Res Traps Triggered 22 | . 2 . . . 6 5 . . 1 . 3 1 . 1 1 . . . . 2 Indirectly 5 | . . . . . 4 1 . . . . . . . . . . . . . . Trap Hack Attempts . | . . . . . . . . . . . . . . . . . . . . . Triggered . | . . . . . . . . . . . . . . . . . . . . . Disarmed . | . . . . . . . . . . . . . . . . . . . . . Reprogrammed . | . . . . . . . . . . . . . . . . . . . . . Reused . | . . . . . . . . . . . . . . . . . . . . . Traps Extracted . | . . . . . . . . . . . . . . . . . . . . . Installed . | . . . . . . . . . . . . . . . . . . . . . Triggered . | . . . . . . . . . . . . . . . . . . . . . Machines | -11 -10 -10 -9 -9 -8 -8 -8 -8 -6 -6 -6 -5 -5 -5 -4 -4 -4 -4 -3 -3 ---------- Run | Yrd Mat Min Mat Min Mat Sto Rec Scr Fac Was Fac Fac Was Fac Fac Upp Upp Zhi Pro Res Machines Disabled 38 | . . . 1 . 4 15 . 8 . . 2 2 . 2 3 . . . . 1 Max in Single Turn 4 | . . . 1 . 1 1 . 4 . . 1 1 . . 2 . . . . 1 Garrison Access 6 | . . . . . 1 . . . . . 2 . . 1 1 . . . . 1 Machines Repaired . | . . . . . . . . . . . . . . . . . . . . . Machines Dismantled . | . . . . . . . . . . . . . . . . . . . . . Machines Sabotaged . | . . . . . . . . . . . . . . . . . . . . . Overloaded Fab Kills 2 | . . . . . . . . . . . . 2 . . . . . . . . Hacking | -11 -10 -10 -9 -9 -8 -8 -8 -8 -6 -6 -6 -5 -5 -5 -4 -4 -4 -4 -3 -3 --------- Run | Yrd Mat Min Mat Min Mat Sto Rec Scr Fac Was Fac Fac Was Fac Fac Upp Upp Zhi Pro Res Machines Accessed 120 | . 6 1 4 . 6 10 10 2 13 . 17 13 . 18 12 . . 4 . 4 Terminals 50 | . 4 . 3 . 4 10 6 . 5 . 4 4 . 5 3 . . . . 2 Fabricators 16 | . . . . . . . . . 3 . 3 3 . 3 3 . . . . 1 Repair Stations 4 | . . . 1 . . . . . . . 1 . . 2 . . . . . . Recycling Units 37 | . 2 . . . 1 . 4 . 5 . 7 6 . 7 5 . . . . . Scanalyzers . | . . . . . . . . . . . . . . . . . . . . . Garrison Access 6 | . . . . . 1 . . . . . 2 . . 1 1 . . . . 1 Total Hacks 287 | . 11 1 12 . 13 25 28 8 26 . 38 26 . 43 28 . . 17 . 11 Successful 164 | . 4 1 5 . 3 14 11 8 18 . 22 15 . 23 17 . . 17 . 6 Failed 123 | . 7 . 7 . 10 11 17 . 8 . 16 11 . 20 11 . . . . 5 Catastrophic 16 | . . . 1 . 1 4 2 . 1 . 1 . . 2 3 . . . . 1 Database Lockouts . | . . . . . . . . . . . . . . . . . . . . . Manual 174 | . 9 . 9 . 12 18 23 . 16 . 27 15 . 27 18 . . . . . Terminals 151 | . 8 . 10 . 11 25 21 . 11 . 14 11 . 19 13 . . . . 8 Fabricators 46 | . . . . . . . . . 9 . 9 9 . 8 9 . . . . 2 Repair Stations 10 | . . . 2 . . . . . . . 2 . . 6 . . . . . . Recycling Units 46 | . 3 . . . 1 . 7 . 6 . 10 6 . 8 5 . . . . . Scanalyzers . | . . . . . . . . . . . . . . . . . . . . . Garrison Access 8 | . . . . . 1 . . . . . 3 . . 2 1 . . . . 1 Terminal Hacks 68 | . 1 1 2 . 1 7 2 8 6 . 7 3 . 6 4 . . 17 . 3 Record 5 | . . . . . . . . . . . . . . . . . . 5 . . Part Schematic 8 | . . . . . . . . . 1 . 1 . . 1 1 . . 4 . . Robot Analysis 11 | . . . . . . . . 7 . . . . . . . . . 4 . . Prototype ID Bank 12 | . 1 . 1 . . 1 2 . 2 . . 1 . . . . . 4 . . Open Door 4 | . . 1 . . . 3 . . . . . . . . . . . . . . Level Access Points 1 | . . . . . . . . . . . . . . 1 . . . . . . Branch Access Points 2 | . . . . . 1 . . . . . . . . 1 . . . . . . Machine Index 1 | . . . . . . . . . . . . . . . 1 . . . . . Terminal Index 6 | . . . 1 . . . . . . . 1 1 . 1 1 . . . . 1 Fabricator Index 5 | . . . . . . . . . 1 . 1 1 . 1 . . . . . 1 Repair Station Index 1 | . . . . . . . . . . . 1 . . . . . . . . . Recycling Unit Index 1 | . . . . . . . . . . . . . . 1 . . . . . . Alert Level 2 | . . . . . . 2 . . . . . . . . . . . . . . Unreport Threat 4 | . . . . . . . . . 1 . 1 . . . 1 . . . . 1 Recall Extermination 1 | . . . . . . . . . 1 . . . . . . . . . . . Hauler Manifests 1 | . . . . . . 1 . . . . . . . . . . . . . . Zone Layout 2 | . . . . . . . . . . . 2 . . . . . . . . . Proto ID Catalog 1 | . . . . . . . . 1 . . . . . . . . . . . . Fabricator Hacks 24 | . . . . . . . . . 4 . 5 4 . 4 5 . . . . 2 Load Schematic 16 | . . . . . . . . . 3 . 3 3 . 3 3 . . . . 1 Build 8 | . . . . . . . . . 1 . 2 1 . 1 2 . . . . 1 Repair Station Hacks 5 | . . . 1 . . . . . . . 1 . . 3 . . . . . . Scan Component 4 | . . . 1 . . . . . . . 1 . . 2 . . . . . . Repair 1 | . . . . . . . . . . . . . . 1 . . . . . . Recycling Unit Hacks . | . . . . . . . . . . . . . . . . . . . . . Scanalyzer . | . . . . . . . . . . . . . . . . . . . . . Garrison Access Hacks 6 | . . . . . 1 . . . . . 2 . . 1 1 . . . . 1 Seal Access 6 | . . . . . 1 . . . . . 2 . . 1 1 . . . . 1 Unauthorized Hacks 61 | . 3 . 2 . 1 7 9 . 8 . 7 8 . 9 7 . . . . . Terminals 18 | . 1 . 2 . . 7 5 . . . . 1 . 2 . . . . . . Assimilate 1 | . . . . . . . . . . . . . . 1 . . . . . . Botnet 2 | . . . . . . 1 1 . . . . . . . . . . . . . Operators 2 | . . . . . . . . . . . . 1 . 1 . . . . . . Skim 13 | . 1 . 2 . . 6 4 . . . . . . . . . . . . . Fabricators 8 | . . . . . . . . . 3 . 1 1 . 1 2 . . . . . Prioritize 2 | . . . . . . . . . 1 . . . . . 1 . . . . . Overload 1 | . . . . . . . . . . . . 1 . . . . . . . . Recompile 5 | . . . . . . . . . 2 . 1 . . 1 1 . . . . . Repair Stations . | . . . . . . . . . . . . . . . . . . . . . Recycling Units 35 | . 2 . . . 1 . 4 . 5 . 6 6 . 6 5 . . . . . Tunnel 7 | . 2 . . . 1 . 4 . . . . . . . . . . . . . Fedlink 28 | . . . . . . . . . 5 . 6 6 . 6 5 . . . . . Scanalyzers . | . . . . . . . . . . . . . . . . . . . . . Garrison Access . | . . . . . . . . . . . . . . . . . . . . . Data Cores Recovered 1 | . . . . . . . . . . . . 1 . . . . . . . . Used . | . . . . . . . . . . . . . . . . . . . . . Hacking Detections 66 | . 4 . 4 . 4 9 7 . 9 . 8 6 . 8 4 . . . . 3 Full Trace Events 21 | . . . . . 2 1 3 . 1 . 3 3 . 5 1 . . . . 2 Feedback Events 2 | . . . . . . . . . . . 2 . . . . . . . . . Corruption 2 | . . . . . . . . . . . 2 . . . . . . . . . Feedback Blocked 1 | . . . . . . . . . . . . . . 1 . . . . . . Robot Schematics Acquired . | . . . . . . . . . . . . . . . . . . . . . Robots Built . | . . . . . . . . . . . . . . . . . . . . . Authchips . | . . . . . . . . . . . . . . . . . . . . . Time . | . . . . . . . . . . . . . . . . . . . . . Total Robot Build Rating . | . . . . . . . . . . . . . . . . . . . . . Part Schematics Acquired 8 | . . . . . . . . . 1 . 1 . . 1 1 . . 4 . . Parts Built 9 | . . . . . . . . . 1 . 3 1 . 1 2 . . . . 1 Authchips 5 | . . . . . . . . . 1 . 1 1 . 1 1 . . . . . Time 599 | . . . . . . . . . 67 . 109 67 . 134 169 . . . . 53 Total Part Build Rating 48 | . . . . . . . . . 4 . 20 4 . 4 10 . . . . 6 Parts Repaired 1 | . . . . . . . . . . . . . . 1 . . . . . . Time 62 | . . . . . . . . . . . . . . 62 . . . . . . Parts Recycled . | . . . . . . . . . . . . . . . . . . . . . Recycled Matter . | . . . . . . . . . . . . . . . . . . . . . Retrieved Matter . | . . . . . . . . . . . . . . . . . . . . . Retrieved Components . | . . . . . . . . . . . . . . . . . . . . . Parts Scanalyzed . | . . . . . . . . . . . . . . . . . . . . . Part Schematics Acquired . | . . . . . . . . . . . . . . . . . . . . . Parts Damaged . | . . . . . . . . . . . . . . . . . . . . . Bothacking | -11 -10 -10 -9 -9 -8 -8 -8 -8 -6 -6 -6 -5 -5 -5 -4 -4 -4 -4 -3 -3 ------------ Run | Yrd Mat Min Mat Min Mat Sto Rec Scr Fac Was Fac Fac Was Fac Fac Upp Upp Zhi Pro Res Used RIF Installer . | . . . . . . . . . . . . . . . . . . . . . Robots Hacked 1 | . . . . . . . . . . . . 1 . . . . . . . . Non-combat 1 | . . . . . . . . . . . . 1 . . . . . . . . Combat . | . . . . . . . . . . . . . . . . . . . . . Robot Hacks Applied 1 | . . . . . . . . . . . . 1 . . . . . . . . find_chute 1 | . . . . . . . . . . . . 1 . . . . . . . . Relay Couplers Released . | . . . . . . . . . . . . . . . . . . . . . Fabnet Peak Effective % . | . . . . . . . . . . . . . . . . . . . . . Robots Rewired 1 | . . . . . . . . . . . . . . . 1 . . . . . Allies Hacked . | . . . . . . . . . . . . . . . . . . . . . Hacks Repelled . | . . . . . . . . . . . . . . . . . . . . . Allies | -11 -10 -10 -9 -9 -8 -8 -8 -8 -6 -6 -6 -5 -5 -5 -4 -4 -4 -4 -3 -3 -------- Run | Yrd Mat Min Mat Min Mat Sto Rec Scr Fac Was Fac Fac Was Fac Fac Upp Upp Zhi Pro Res Total Allies 24 | . . . . . . 2 . . . . . . 20 1 1 . . . . . Largest Group 20 | . . . . . . 2 . . . . . . 20 20 1 . . . . . Highest-Rated Group 696 | . . . . . . 62 . . . . . . 696 696 42 . . . . . Highest-Rated Ally 46 | . . . . . . 31 . . . . . . 46 46 42 . . . . . Total Orders 1 | . . . . . . . . . . . . . . . 1 . . . . . ROAM 1 | . . . . . . . . . . . . . . . 1 . . . . . Ally Attacks 163 | . . . . . . 19 . . . . . . . 142 2 . . . . . Total Damage 3484 | . . . . . . 259 . . . . . . . 3119 106 . . . . . Kills 26 | . . . . . . 5 . . . . . . . 21 . . . . . . Allies Corrupted . | . . . . . . . . . . . . . . . . . . . . . Allies Melted . | . . . . . . . . . . . . . . . . . . . . . Intel | -11 -10 -10 -9 -9 -8 -8 -8 -8 -6 -6 -6 -5 -5 -5 -4 -4 -4 -4 -3 -3 ------- Run | Yrd Mat Min Mat Min Mat Sto Rec Scr Fac Was Fac Fac Was Fac Fac Upp Upp Zhi Pro Res Active Infowar (turns) 8441 | 31 545 . 1077 1440 611 . . 2 836 32 482 523 157 604 701 891 141 . . 368 Sensors 4188 | . . . . . . . . 2 836 32 482 523 157 604 701 710 141 . . . IFF 316 | . . . . . . . . . . . . . . . . . . . . 316 Seismic 3704 | 31 545 . 1077 1440 611 . . . . . . . . . . . . . . . Jamming 365 | . . . . . . . . . . . . . . . . . . . . 365 ECM 39 | . . . . . . . . . . . . . . . 39 . . . . . ID Mask 181 | . . . . . . . . . . . . . . . . 181 . . . . Robot Analysis Total 11 | . . . . . . . . 7 . . . . . . . . . 4 . . Derelict Logs Recovered 5 | . . . . 2 . . . . . . . . . . . 2 1 . . . Drone Launches . | . . . . . . . . . . . . . . . . . . . . . Drone Recoveries . | . . . . . . . . . . . . . . . . . . . . . Exploration | -11 -10 -10 -9 -9 -8 -8 -8 -8 -6 -6 -6 -5 -5 -5 -4 -4 -4 -4 -3 -3 ------------- Run | Yrd Mat Min Mat Min Mat Sto Rec Scr Fac Was Fac Fac Was Fac Fac Upp Upp Zhi Pro Res Turns Passed 19721 | 81 847 244 1365 1440 2751 3918 1467 1651 839 32 812 523 274 647 723 977 202 105 150 673 Spaces Moved 16423 | 45 471 176 554 543 943 917 578 1147 1624 100 2111 1356 341 1428 1620 831 314 149 263 912 Core 181 | 9 . . . . . . . 3 . . . . . . . 31 . . . 138 Treads 2773 | 2 . . . . 705 917 578 571 . . . . . . . . . . . . Legs 2016 | 34 471 176 554 543 238 . . . . . . . . . . . . . . . Wheels . | . . . . . . . . . . . . . . . . . . . . . Hover 1193 | . . . . . . . . . . . . . . . . 112 193 60 263 565 Flight 10260 | . . . . . . . . 573 1624 100 2111 1356 341 1428 1620 688 121 89 . 209 Fastest Speed 5 | 50 120 120 120 260 235 235 242 26 20 23 19 23 25 14 5 14 32 32 27 25 Average Speed 86 | 131 120 120 199 260 243 240 245 137 22 23 25 27 25 24 25 58 50 35 33 44 Slowest Speed 400 | 200 120 120 330 260 400 250 250 330 23 23 32 35 27 25 92 166 115 50 40 150 Overloaded Moves 454 | . . . . . . . . . 4 . 10 . . 7 230 51 . . 139 13 Propulsion Burnouts 1 | . . . . . . . . . . . . . . . 1 . . . . . Robots Hopped 56 | . . . . . . . . . 4 . 10 4 2 2 26 1 . . . 7 Potential Cave-ins 4 | . . . . . . . . . . . 2 . . . 2 . . . . . Cave-ins Triggered . | . . . . . . . . . . . . . . . . . . . . . Teleports 1 | . . . . . . . . . . . . . . . . . . . . 1 Exploration Rate (%) 57 | 4 72 33 30 100 76 94 98 49 36 72 53 33 93 42 42 87 47 60 59 20 Regions Visited 20 Branch Regions 9 Pre-discovered Areas 17 | . 2 . . 3 1 1 4 . 1 . . . . . . 1 1 3 . . Known Exits Taken 8 | . . . . . 1 . . . . . 1 . . 1 1 1 1 1 1 . Unknown Exits Taken 8 | 1 1 1 1 1 . 1 1 1 . . . . . . . . . . . . Scrap Searched 11 | . . . . 1 . . . 5 . . . . . . . 3 1 . 1 . Spaces Dug 175 | . . . . . . 37 . . 32 . 46 14 . 17 21 1 . . 2 5 Terrain Destroyed 739 | . . . 3 . 61 193 5 13 43 . 54 19 . 19 85 162 . . 7 75 Melee 102 | . . . . . . 3 . . 16 . 36 10 . 17 19 1 . . . . Projectile 55 | . . . . . . . . . 19 . 4 9 . 2 5 . . . 7 9 AOE 582 | . . . 3 . 61 190 5 13 8 . 14 . . . 61 161 . . . 66 Terrain Rammed . | . . . . . . . . . . . . . . . . . . . . . Walls Destroyed . | . . . . . . . . . . . . . . . . . . . . . Machines Disabled . | . . . . . . . . . . . . . . . . . . . . . Actions | -11 -10 -10 -9 -9 -8 -8 -8 -8 -6 -6 -6 -5 -5 -5 -4 -4 -4 -4 -3 -3 --------- Run | Yrd Mat Min Mat Min Mat Sto Rec Scr Fac Was Fac Fac Was Fac Fac Upp Upp Zhi Pro Res Total 20681 | 58 620 197 725 556 1186 2357 613 1221 2032 107 2273 1454 503 1680 1853 1292 340 183 319 1112 Wait 2784 | . 49 5 55 . 48 1107 . . 333 7 40 37 135 211 175 407 10 13 46 106 Move 16298 | 44 470 175 553 542 943 916 577 1146 1616 99 2091 1348 336 1423 1569 828 313 148 262 899 Hop 52 | . . . . . . . . . 4 . 9 4 2 2 24 1 . . . 6 Pick Up 137 | 2 8 3 19 2 22 21 4 14 7 . . 5 4 4 8 2 . 1 1 10 Fast Attach 152 | 8 1 . 3 . 10 17 4 21 7 1 20 11 3 5 3 5 4 7 . 22 Attach 96 | . 5 1 4 . 13 15 2 4 5 . 3 5 2 2 11 9 2 3 1 9 Detach 36 | 1 . . . . . 2 3 . 3 . 3 1 1 1 8 8 1 . 2 2 Swap 109 | . 6 2 14 2 18 39 2 . 7 . 7 1 1 1 8 1 . . . . Drop 184 | . 1 3 11 . 17 31 10 33 12 . 18 6 5 3 11 5 . 1 . 17 Fire 409 | 3 75 8 31 1 101 92 5 3 20 . 5 12 . 2 10 13 . 2 7 19 Melee 366 | . . . 35 . 5 115 . . 18 . 53 24 14 26 25 13 10 8 . 20 Ram 3 | . . . . . . 1 . . . . . . . . . . . . . 2 Kick 17 | . 5 . . 9 3 . . . . . . . . . . . . . . . Crush 13 | . . . . . 6 1 6 . . . . . . . . . . . . . Escape Stasis 24 | . . . . . . . . . . . 24 . . . . . . . . . Rewire 1 | . . . . . . . . . . . . . . . 1 . . . . . Trap . | . . . . . . . . . . . . . . . . . . . . . Miscellaneous . | . . . . . . . . . . . . . . . . . . . . . Route ------- -11/Scrapyard -10/Materials (discovered 3 exits: *Mat / *Min x2) -10/Mines -9/Materials -9/Mines (discovered 2 exits: *Mat x2) -8/Materials (discovered 3 exits: [*Fac x2] / *Sto) -8/Storage (discovered 2 exits: [*Fac] / *Rec) -8/Recycling (discovered 2 exits: *Fac / *Scr) -8/Scraptown -6/Factory (discovered 2 exits: *Low x2) -6/Waste -6/Factory (discovered 3 exits: *Fac x2 / *Low) -5/Factory -5/Waste -5/Factory (discovered 6 exits: *Fac x4 / Upp x2) -4/Factory -4/Upper Caves -4/Upper Caves -4/Zhirov -3/Proximity Caves -3/Research History --------- Turn | Location | Event 9 | -11/Scrapyard | Discovered new exit (range 14) 82 | -11/Scrapyard | Entered Materials 247 | -10/Materials | Core integrity fell below 50% 306 | -10/Materials | Discovered new exit (range 16) 439 | -10/Materials | Discovered new exit (range 16) 500 | -10/Materials | Build established: Scavenger-Mutant 675 | -10/Materials | Discovered new exit (range 10) 691 | -10/Materials | Core integrity fell below 20% 929 | -10/Materials | Entered Mines 993 | -10/Mines | A weapon hastily lodged in a ceiling crevice suddenly fell to the ground 1035 | -10/Mines | Met a Derelict shopkeep closing up shop 1141 | -10/Mines | Discovered new exit (range 8) 1173 | -10/Mines | Entered Materials 1173 | -9/Materials | Evolved 2 slots: Propulsion x1, Utility x1 1391 | -9/Materials | Discovered new exit (range 16) 2538 | -9/Materials | Entered Mines 2545 | -9/Mines | Met a Derelict bent on vengeance 2892 | -9/Mines | Discovered new exit (range 9) 3080 | -9/Mines | Learned location of Zion (-7) 3098 | -9/Mines | Discovered new exit (range 13) 3327 | -9/Mines | Found a damaged Exp. Sensor Array with a note attached 3337 | -9/Mines | Found Prototype Device 3978 | -9/Mines | Entered Materials 3978 | -8/Materials | Evolved 2 slots: Propulsion x1, Utility x1 4876 | -8/Materials | Garrison activated, responded to threat 4900 | -8/Materials | Destroyed 8 combat bots 5114 | -8/Materials | Discovered new exit (range 12) 5709 | -8/Materials | Discovered new exit (range 8) 5741 | -8/Materials | Destroyed 10 combat bots 5977 | -8/Materials | Build established: Mutant 5979 | -8/Materials | Lost 3 parts (1p1u1w) 6232 | -8/Materials | Identified exit to Storage 6729 | -8/Materials | Entered Storage 6748 | -8/Storage | Lost 4 parts (1n1u2w) 7406 | -8/Storage | Build established: Scavenger-Mutant 7526 | -8/Storage | System corruption reached 10% 8214 | -8/Storage | Discovered new exit (range 10) 8279 | -8/Storage | Met a pair of Derelict thieves 8430 | -8/Storage | Build established: Mutant 8656 | -8/Storage | Learned location of Recycling (-8) 8664 | -8/Storage | Core integrity fell below 50% 8713 | -8/Storage | Learned location of 1 exit from Lower Caves 8729 | -8/Storage | First assault squad dispatched 8796 | -8/Storage | Destroyed 10 combat bots 9353 | -8/Storage | Used back door to open Recycling access 9353 | -8/Storage | Discovered new exit (range 5) 10420 | -8/Storage | Destroyed 12 combat bots 10448 | -8/Storage | Sterilization system engaged 10448 | -8/Storage | Non-combat units ordered to evacuate 10548 | -8/Storage | Combat units ordered to evacuate 10647 | -8/Storage | Entered Recycling 10791 | -8/Recycling | Core integrity fell below 20% 11184 | -8/Recycling | Discovered new exit (range 16) 12054 | -8/Recycling | Scanned before Scraplab entrance 12089 | -8/Recycling | Entered Scraplab 12109 | -8/Recycling | Discovered new exit (range 3) 12114 | -8/Recycling | Entered Scraptown 12114 | -8/Scraptown | System corruption cleaned by C-Scrubber 12408 | -8/Scraptown | Visited UFD Registry 12408 | -8/Scraptown | Registered with UFD as "Powermod" 12563 | -8/Scraptown | Visited Modified Component R&D 12590 | -8/Scraptown | Visited Analyses Database 12632 | -8/Scraptown | Identified Exp. Sensor Array 12874 | -8/Scraptown | Visited Supply Room 12934 | -8/Scraptown | Visited Infowarlord's Domain 12979 | -8/Scraptown | Visited DA-N13 Charitable Foundation 13001 | -8/Scraptown | Found DCF Scrap (31 items) 13094 | -8/Scraptown | Visited Science Guys 13174 | -8/Scraptown | Visited Chapter 10 13229 | -8/Scraptown | Visited Scrapoid Research Area 13296 | -8/Scraptown | Visited Research Penetration Think Tank 13617 | -8/Scraptown | Found Exp. Signal Interpreter 13652 | -8/Scraptown | Discovered new exit (range 5) 13670 | -8/Scraptown | Met Optimus 13670 | -8/Scraptown | Accepted into 0bPrime 13694 | -8/Scraptown | Civil war broke out across Scraptown 13708 | -8/Scraptown | Found Voltaic Drivehammer 13730 | -8/Scraptown | Found ID Mask 13746 | -8/Scraptown | Lost 3 allies 13765 | -8/Scraptown | System corruption cleaned by C-Scrubber 13765 | -8/Scraptown | Entered Factory 13765 | -6/Factory | Evolved 4 slots: Propulsion x1, Utility x3 13818 | -6/Factory | Loaded intel: 8 recycling unit locations 13829 | -6/Factory | Learned location of Protoforge (-3) 13862 | -6/Factory | Build established: Hacker-Sprinter 14153 | -6/Factory | Discovered new exit (range 3) 14153 | -6/Factory | Identified exit to Lower Caves 14321 | -6/Factory | Discovered exit to Lower Caves (range 5) 14328 | -6/Factory | Fabricated Cld. VTOL Module? 14419 | -6/Factory | Spotted B-75 Beast 14604 | -6/Factory | Manually triggered Chute Trap 14604 | -6/Factory | Sucked down chute 14604 | -6/Factory | Entered Waste 14608 | -6/Waste | Spotted C-40 Crusher 14612 | -6/Waste | Spotted C-40 Crusher 14612 | -6/Waste | Spotted C-40 Crusher 14617 | -6/Waste | Spotted C-40 Crusher 14619 | -6/Waste | EMP discharged 14619 | -6/Waste | Discovered new exit (range 16) 14619 | -6/Waste | Spotted C-40 Crusher 14619 | -6/Waste | Spotted C-40 Crusher 14627 | -6/Waste | Identified exit to Factory 14636 | -6/Waste | Entered Factory 14726 | -6/Factory | Loaded intel: 8 recycling unit locations 14909 | -6/Factory | Discovered new exit (range 15) 14980 | -6/Factory | Discovered new exit (range 3) 14980 | -6/Factory | Identified exit to Factory 15074 | -6/Factory | Fabricated Q-thruster? 15114 | -6/Factory | Fabricated Cld. VTOL Module? 15146 | -6/Factory | System corruption reached 10% 15158 | -6/Factory | Discovered exit to Lower Caves (range 5) 15176 | -6/Factory | Lost 3 parts (2n1u) 15243 | -6/Factory | Lost 4 parts (1n3u) 15273 | -6/Factory | Cargo convoy interrupted 15448 | -6/Factory | Entered another Factory area 15448 | -5/Factory | Evolved 2 slots: Propulsion x1, Utility x1 15527 | -5/Factory | Build established: Machinist-Sprinter 15532 | -5/Factory | Fabricated Cld. VTOL Module? 15540 | -5/Factory | Loaded intel: 8 recycling unit locations 15882 | -5/Factory | Build established: Hacker-Sprinter 15965 | -5/Factory | Spotted B-75 Beast 15971 | -5/Factory | Manually triggered Chute Trap 15971 | -5/Factory | Sucked down chute 15971 | -5/Factory | Entered Waste 15972 | -5/Waste | Joined by Warlord forces that had cleared the area 16194 | -5/Waste | Discovered new exit (range 13) 16245 | -5/Waste | Identified exit to Factory 16245 | -5/Waste | Entered Factory 16245 | -5/Factory | Accompanied by 20 allies 16264 | -5/Factory | Identified exit to Upper Caves 16264 | -5/Factory | Identified exit to Factory 16293 | -5/Factory | Loaded intel: 8 recycling unit locations 16520 | -5/Factory | Lost 5 allies 16649 | -5/Factory | Repaired Antimatter Reactor 16845 | -5/Factory | Search patrols dispatched 16846 | -5/Factory | Fabricated Cld. VTOL Module? 16892 | -5/Factory | Entered another Factory area 16892 | -4/Factory | Evolved 2 slots: Utility x1, Weapon x1 16954 | -4/Factory | Discovered new exit (range 5) 16955 | -4/Factory | Identified exit to Upper Caves 17152 | -4/Factory | Loaded intel: 8 recycling unit locations 17201 | -4/Factory | Fabricated Smartbomb Launcher (x1) 17392 | -4/Factory | Search patrols dispatched 17439 | -4/Factory | Fabricated Cld. VTOL Module? 17615 | -4/Factory | Entered Upper Caves 17638 | -4/Upper Caves | ID Mask engaged 17669 | -4/Upper Caves | Lost 3 parts (2n1u) 17672 | -4/Upper Caves | Encountered a Warlord checkpoint 17729 | -4/Upper Caves | Learned Research stockpile data 17819 | -4/Upper Caves | ID Mask no longer valid 18461 | -4/Upper Caves | Lost 4 parts (2n1u1w) 18588 | -4/Upper Caves | Discovered new exit (range 6) 18592 | -4/Upper Caves | Identified exit to Upper Caves 18592 | -4/Upper Caves | Entered another Upper Caves area 18670 | -4/Upper Caves | Build established: Hacker-Mutant 18710 | -4/Upper Caves | Learned location of Testing (-2) 18769 | -4/Upper Caves | Lost 3 parts (1p2u) 18787 | -4/Upper Caves | Discovered new exit (range 13) 18793 | -4/Upper Caves | Identified exit to Zhirov 18794 | -4/Upper Caves | Attracted the attention of an 0b10 checkpoint 18794 | -4/Upper Caves | Entered Zhirov 18794 | -4/Zhirov | Discovered new exit (range 3) 18800 | -4/Zhirov | Met Zhirov 18806 | -4/Zhirov | Learned location of Command (-1) 18806 | -4/Zhirov | Learned location of Quarantine (-3) 18809 | -4/Zhirov | Zhirov requested help retrieving the SGEMP Prototype 18814 | -4/Zhirov | Found Alien Artifact 18814 | -4/Zhirov | Identified Integrated Reactor 18814 | -4/Zhirov | Installed Integrated Reactor, increased core energy generation (+10) 18819 | -4/Zhirov | Found Alien Artifact 18898 | -4/Zhirov | Identified exit to Proximity Caves 18899 | -4/Zhirov | Entered Proximity Caves 18901 | -3/Proximity Caves | Attracted the attention of an 0b10 checkpoint 18901 | -3/Proximity Caves | Spotted B-86 Titan 19008 | -3/Proximity Caves | Core integrity fell below 50% 19044 | -3/Proximity Caves | Discovered new exit (range 12) 19048 | -3/Proximity Caves | Identified exit to Research 19049 | -3/Proximity Caves | Entered Research 19049 | -3/Research | Evolved 2 slots: Power x1, Weapon x1 19128 | -3/Research | Spotted B-86 Titan 19358 | -3/Research | Fabricated Smartbomb Launcher (x1) 19415 | -3/Research | System corruption reached 10% 19457 | -3/Research | Lost 8 parts (1p4n3u) 19517 | -3/Research | Lost 6 parts (3n1u2w) 19551 | -3/Research | Core integrity fell below 50% 19564 | -3/Research | Identified Transdimensional Reconstructor 19564 | -3/Research | Warped through subspace 19675 | -3/Research | Spotted B-86 Titan 19706 | -3/Research | Core integrity fell below 20% 19722 | -3/Research | Destroyed by H-77 Assassin with Coil Gun Last Messages --------------- 19667_ Slammed into K-01 Serf. 19671_ System corrupted: Heat flow error (+290). 19673_ Gravmag Array destroyed. 19676_ K-01 Serf destroyed. 19678_ K-01 Serf collects debris. 19682_ R-10 Processor collects Wheel. 19692_ System corrupted: Matter fused (-10). 19695_ Broken Field Propulsion Array destroyed. 19698_ Slug penetrates Wall. 19705_ Slammed into P-80 Master. 19705_ Destabilizing: System corrupted (+1). 19707_ System corrupted: Energy discharge (-39). 19708_ Knocked back. 19708_ Penetrated by Slug. 19710_ Graphene Brace destroyed. 19710_ Penetrated by Slug. 19722_ System corrupted: FCS attempts to trigger Imp. Matter Neutralizer. 19722_ System corrupted: Imp. Matter Neutralizer misfires. 19722_ Slug penetrates Graviton Restrictor. 19722_ Penetrated by Slug. Map ----- +----------------------------------------------------+ | ?????????????????????????????????????????????????? | | ?????????????????????????????????????????????????? | | ?????????????????????????????????????????????????? | | ?????????????????????????????????????????????????? | | ?????????????????????????????????????????????????? | | ?????????????????????????????????????????????????? | | ?????????????????????????????????????????????????? | | ?????????????????????????????????????????????????? | | ?????????????????????????????????????????????????? | | ?????????????????????????????????????????????????? | | ?????????????????????????????????????????????????? | | ?????????????????????????????????????????????????? | | ?????????????????????????????????????????????????? | | ?????????????????????????????????????????????????? | | ?????????????????????????????????????????????????? | | ?????????????????????????????????????????????????? | | ???????????????? #???????????????????????????????? | | ????????????????kh ? ???????????????????????????? | | ?????????????????# ""????????????????????######?? | | ?????????????????# """???????????????????# #?? | | ?????????????????? """???????????????????# ### | | ???????????????????? ??????????????????# # | | ????????????????????? ??????????????????# / | | ?????????????????????? ?????????????????# # | | ??????????????????????#+;########?????????# % # | | ??????????????????????# ;@ #?????????# # | | ??????????????????????# # #??????#### ### | | ??????????????????????# # ########"## #?? | | ??????????????????????# # + #?? | | ??????????????????????# # ######## #?? | | ??????????????????????# #####+########## #?? | | ??????????!???????????# #?? | | ??????????????????????# +?? | | ??????????????????????# #?? | | ??????????????????????####### T #?? | | ????????????????????????????# *! #?? | | ???????????##+#??????######?# ^!! #?? | | ??????????? ??????# # !! "?? | | ???????????? ??????# # "#? | | ???????????? " ??????# / ? | | ???????????? ??????# ! # # | | ???????????? ??????# # ###+###### | | ????????????# #???!??# ?# * ###????????? | | ????????????# #??????###/##?# #??????????? | | ???????????## ########## #??# #??????????? | | ???????????# #??###+## #??????????? | | ?????####### #???????# ##+#??????????? | | ?????# # #???????# ## ?????##### | | ###### # ######### #???????# ## ???# | | # # #?###???# #???????# ##"""" ?#] | +----------------------------------------------------+ Best States ------------- Heat Dissipation 46 Energy Generation 33 Energy Capacity 325 Matter Stores 300 Matter Capacity 300 Sight Range 16 Robot Scan Range 20 Terrain Scan Density 10 ECM Strength 2 Jamming Range 14 Power Amplification 20 Armor Coverage 525 Propulsion Shielding 66 Evasion (%) 76 Targeting Accuracy 6 Melee Accuracy 11 Recoil Reduction 4 Offensive Hacking 42 Defensive Hacking 14 Authchip Count 1 Item Schematics ----------------- Cld. VTOL Module | -6/Factory | Hacked HERF Cannon | -6/Factory | Hacked Smartbomb Launcher | -5/Factory | Hacked Enh. Force Lance | -4/Factory | Hacked Imp. Arc Thrower | -4/Zhirov | Free Exp. Optical Array | -4/Zhirov | Free Exp. Heat Sink | -4/Zhirov | Free Assault Drone Bay | -4/Zhirov | Free Robot Schematics ------------------ None Fabricated ------------ Cld. VTOL Module | x1 | -6/Factory | Authchip Q-thruster | x2 | -6/Factory | Preloaded, Authchip Cld. VTOL Module | x1 | -6/Factory Cld. VTOL Module | x1 | -5/Factory | Authchip Cld. VTOL Module | x1 | -5/Factory | Authchip Smartbomb Launcher | x1 | -4/Factory Cld. VTOL Module | x1 | -4/Factory | Authchip Smartbomb Launcher | x1 | -3/Research Repaired ---------- Antimatter Reactor | 21% | -5/Factory Alien Tech Used ----------------- Integrated Reactor Transdimensional Reconstructor Achievements -------------- None Challenges ------------ None Game ------ Seed TractorIntegrityBeamcaster Manual? 0 Play Time 02:50:51 Cumulative 282.0 hours Start 2025.08.02 @ 19:43:53 End 2025.08.02 @ 22:44:56 Sessions 1 Manual Loads 0 Difficulty Rogue Special Mode None Game No. 196 Rogue 196 Adventurer 0 Explorer 0 Win Type - Total 15 Types 6/0/5/1/1/0/0/1/0/1 Lore% 78 Gallery% 74 Achievement% 74 Wizard Run 0 Options --------- Layout 0 ASCII 0 Keyboard 0 Movement Mouse Keybinds 0 Fullscreen 2 Font 24/Smallcaps Map View 76x50 Zoom Use 0% Tactical HUD 1 Map Filters NONE Filters NONE Steam 1 RUN: 65bff1d3-bfaf-4ce5-bd93-00ac45993a66